Cogmind - Beta 14 @@@ ROGUE MODE // 2025.05.06 @ 01:25:24 Player: Player Result: Destroyed by G-34 Mercenary with Small Laser Performance ------------- Evolutions (0) 0 Regions Visited (1) 200 Robots Destroyed (16) 80 Value Destroyed (211) 211 Prototype IDs (2) 40 Alien Tech Used (0) 0 Bonus (0) 0 TOTAL SCORE: 531 Bonus ------- None Cogmind --------- Core Integrity 0/250 Matter 291/300 Energy 99/100 System Corruption 0% Temperature Cool (6) Movement Core (700) Ox13 Location -10/Materials Parts ------- > --- POWER (1) -------- (None) > --- PROPULSION (2) --- (None) > --- UTILITY (2) ------ High-capacity Storage Unit Seismic Detector > --- WEAPON (2) ------- Light Assault Rifle > --- INVENTORY (20) --- Ion Engine Light Ion Engine Light Ion Engine Light Treads Light Treads Heat Sink Huge Storage Unit Structural Scanner Signal Interpreter Improved Terrain Scanner Improved Terrain Scanner Seismic Detector Seismic Detector Light Armor Plating Medium Laser Mining Laser Mining Laser Peak State ------------ > --- POWER ------------ Ion Engine > --- PROPULSION ------- Light Treads Light Treads > --- UTILITY ---------- High-capacity Storage Unit Seismic Detector > --- WEAPON ----------- Light Assault Rifle Light Assault Rifle > --- INVENTORY -------- Ion Engine Light Ion Engine Light Ion Engine Light Treads Light Treads Heat Sink Huge Storage Unit Structural Scanner Signal Interpreter Improved Terrain Scanner Improved Terrain Scanner Seismic Detector Seismic Detector Light Armor Plating Medium Laser Mining Laser [Rating: 9] Favorites ----------- Power Ion Engine Engine Ion Engine Propulsion Light Treads Treads Light Treads Utility Seismic Detector Device Seismic Detector Storage High-capacity Storage Unit Weapon EM Pulse Gun Energy Gun EM Pulse Gun Ballistic Gun Light Assault Rifle Special Weapon Mining Laser Build | -11 -10 ------- Run | Yrd Mat Slots Evolved . | . . Power . | . . Propulsion . | . . Utility . | . . Weapon . | . . Parts Attached 13 | 7 6 Power 1 | 1 . Engine 1 | 1 . Core . | . . Reactor . | . . Propulsion 2 | 2 . Treads 2 | 2 . Leg . | . . Wheel . | . . Hover . | . . Flight . | . . Utility 4 | 2 2 Device 2 | 1 1 Storage 2 | 1 1 Processor . | . . Hackware . | . . Protection . | . . Artifact . | . . Weapon 6 | 2 4 Energy Gun 3 | 2 1 Energy Cannon . | . . Ballistic Gun 2 | . 2 Ballistic Cannon . | . . Launcher . | . . Special Weapon 1 | . 1 Impact Weapon . | . . Slashing Weapon . | . . Piercing Weapon . | . . Special Melee Weapon . | . . Unidentified Prototypes . | . . Parts Lost 5 | . 5 Power 1 | . 1 Propulsion 2 | . 2 Utility . | . . Weapon 2 | . 2 Highest Loss Streak 4 | . 4 To Critical Strikes . | . . Average Slot Usage (%) 97 | . 97 Engine 13 | . 13 Treads 26 | . 26 Device 14 | . 14 Storage 14 | . 14 Energy Gun 16 | . 16 Ballistic Gun 10 | . 10 Special Weapon 1 | . 1 Peak Build Rating 9 | 8 9 Average Rating 7 | 6 8 On Entrance 4 | . 8 Naked Turns . | . . Heaviest Build 50 | 15 50 Greatest Support 40 | 40 40 Greatest Overweight (x) 14 | . 14 Average Overweight (x) . | . . Largest Inventory Capacity 20 | 8 20 Average Capacity 15 | 7 17 Most Carried 17 | 8 17 Average Carried 9 | 3 10 Final Capacity 20 | 8 20 Final Carried 17 | 6 17 Class Distribution -------------------- 100% | Mutant Dominant Class ---------------- Mutant | -10/Materials Resources | -11 -10 ----------- Run | Yrd Mat Matter Collected 343 | 232 111 Remotely . | . . Salvage Created 460 | 162 298 Parts 42 | 17 25 Haulers Intercepted 1 | . 1 Recyclers Shooed . | . . Parts Field Recycled . | . . Retrieved Matter . | . . Parts Self-Destructed . | . . Prevented . | . . Kills | -11 -10 ------- Run | Yrd Mat Combat Hostiles Destroyed 8 | . 8 Guns 8 | . 8 Classes Destroyed 6 | 2 4 Tunneler 5 | 5 . Hauler 1 | . 1 Recycler 1 | 1 . Watcher 1 | . 1 Swarmer 5 | . 5 Grunt 3 | . 3 Best Kill Streak 3 | 3 3 Combat Bots Only 3 | . 3 Max Kills in Single Turn 1 | 1 1 Gunslinging . | . . Exploded . | . . Melee . | . . Uniques/NPCs Destroyed . | . . Combat | -11 -10 -------- Run | Yrd Mat Hostile Shots Fired 128 | . 128 Missed 33 | . 33 Damage Taken 854 | 8 846 Core 250 | . 250 Absorbed by Shields . | . . Core Remaining (%) 100 | 100 . Volleys Fired 65 | 25 40 Largest 2 | 2 2 Hottest 100 | 90 100 Shots Fired 125 | 50 75 Gun 123 | 50 73 Cannon . | . . Launcher . | . . Special 2 | . 2 Kinetic 47 | . 47 Thermal 32 | 25 7 Explosive . | . . Electromagnetic 46 | 25 21 Robot Hit Streak 5 | 3 5 Robot Miss Streak 6 | 4 6 Penetration Max . | . . Secondary Targets 3 | . 3 Max Gunslinging Chain 1 | . 1 Shots Hit Robots 63 | 25 38 Core Hits 22 | 7 15 Critical Kills . | . . Critical Parts Destroyed . | . . Critical Strikes 4 | 4 . Burn 4 | 4 . Melee Attacks . | . . Impact . | . . Slashing . | . . Piercing . | . . Sneak Attacks . | . . Combat Hostiles . | . . Follow-up Attacks . | . . Damage Inflicted 803 | 365 438 Guns 739 | 326 413 Cannons . | . . Explosions 64 | 39 25 Melee . | . . Ramming . | . . Kinetic 142 | . 142 Thermal 263 | 201 62 Explosive . | . . Electromagnetic 398 | 164 234 Impact . | . . Slashing . | . . Piercing . | . . Highest Corruption . | . . Average Corruption . | . . Corruption Purged . | . . Corruption Blocked . | . . Overload Shots . | . . Overflow Damage . | . . Projectiles . | . . Explosions . | . . Melee . | . . Knockbacks . | . . Impact . | . . Kinetic . | . . Secondary . | . . Self-Inflicted Damage 8 | 8 . Shots 1 | 1 . Rammed . | . . Targets Rammed . | . . Kicked . | . . Crushed . | . . Highest Temperature 300 | 300 88 Average Temperature 67 | 97 26 Received Heat Transfer 180 | . 180 Siege Activations . | . . Robots Corrupted . | . . Combat Hostiles . | . . Parts Fried . | . . Impact Corruptions . | . . Robots Melted . | . . Combat Hostiles . | . . Parts Melted 1 | . 1 Heat Transferred 988 | 827 161 Parts Sabotaged . | . . Parts Stolen . | . . Parts Stripped . | . . Power Chain Reactions 2 | 1 1 Alert | -11 -10 ------- Run | Yrd Mat Peak Influence 170 | 30 170 Initial 19 | . 19 Average 51 | 14 61 Maximum Alert Level . | . . Low Security (%) 100 | 100 100 Level 1 . | . . Level 2 . | . . Level 3 . | . . Level 4 . | . . Level 5 . | . . High Security . | . . Max Security . | . . Squads Dispatched 2 | . 2 Investigation . | . . Extermination . | . . Reinforcement 2 | . 2 Assault . | . . Garrison . | . . Intercept . | . . Searches Triggered . | . . Construction Impeded . | . . Haulers Reinforced . | . . Active Scanning Responses . | . . Cargo Convoy Interrupts . | . . Stealth | -11 -10 --------- Run | Yrd Mat Distress Signals 2 | . 2 Communications Jammed . | . . Distress Signals . | . . Times Spotted 15 | . 15 Peak Tracking Total 6 | . 6 Tactical Retreats . | . . Traps | -11 -10 ------- Run | Yrd Mat Traps Triggered . | . . Indirectly . | . . Trap Hack Attempts . | . . Triggered . | . . Disarmed . | . . Reprogrammed . | . . Reused . | . . Traps Extracted . | . . Installed . | . . Triggered . | . . Machines | -11 -10 ---------- Run | Yrd Mat Machines Disabled . | . . Max in Single Turn . | . . Machines Repaired . | . . Machines Dismantled . | . . Machines Sabotaged . | . . Overloaded Fab Kills . | . . Hacking | -11 -10 --------- Run | Yrd Mat Machines Accessed 3 | . 3 Terminals 3 | . 3 Fabricators . | . . Repair Stations . | . . Recycling Units . | . . Scanalyzers . | . . Garrison Access . | . . Total Hacks 9 | . 9 Successful 6 | . 6 Failed 3 | . 3 Catastrophic 2 | . 2 Database Lockouts . | . . Manual 9 | . 9 Terminals 9 | . 9 Fabricators . | . . Repair Stations . | . . Recycling Units . | . . Scanalyzers . | . . Garrison Access . | . . Terminal Hacks 4 | . 4 Part Schematic 1 | . 1 Prototype ID Bank 1 | . 1 Branch Access Points 1 | . 1 Registered Components 1 | . 1 Fabricator Hacks . | . . Repair Station Hacks . | . . Recycling Unit Hacks . | . . Scanalyzer . | . . Garrison Access Hacks . | . . Unauthorized Hacks 2 | . 2 Terminals 2 | . 2 Assimilate 1 | . 1 Botnet 1 | . 1 Fabricators . | . . Repair Stations . | . . Recycling Units . | . . Scanalyzers . | . . Garrison Access . | . . Data Cores Recovered . | . . Used . | . . Hacking Detections 2 | . 2 Full Trace Events . | . . Feedback Events . | . . Feedback Blocked . | . . Robot Schematics Acquired . | . . Robots Built . | . . Authchips . | . . Time . | . . Total Robot Build Rating . | . . Part Schematics Acquired 1 | . 1 Parts Built . | . . Authchips . | . . Time . | . . Total Part Build Rating . | . . Parts Repaired . | . . Time . | . . Parts Recycled . | . . Recycled Matter . | . . Retrieved Matter . | . . Retrieved Components . | . . Parts Scanalyzed . | . . Part Schematics Acquired . | . . Parts Damaged . | . . Bothacking | -11 -10 ------------ Run | Yrd Mat Used RIF Installer . | . . Robots Hacked . | . . Non-combat . | . . Combat . | . . Robot Hacks Applied . | . . Relay Couplers Released . | . . Fabnet Peak Effective % . | . . Robots Rewired . | . . Allies Hacked . | . . Hacks Repelled . | . . Allies | -11 -10 -------- Run | Yrd Mat Total Allies 1 | . 1 Largest Group 1 | . 1 Highest-Rated Group 10 | . 10 Highest-Rated Ally 10 | . 10 Total Orders . | . . Ally Attacks . | . . Total Damage . | . . Kills . | . . Allies Corrupted . | . . Allies Melted . | . . Intel | -11 -10 ------- Run | Yrd Mat Robot Analysis Total . | . . Derelict Logs Recovered . | . . Drone Launches . | . . Drone Recoveries . | . . Exploration | -11 -10 ------------- Run | Yrd Mat Turns Passed 1073 | 229 844 Spaces Moved 359 | 86 273 Core 5 | 3 2 Treads 354 | 83 271 Legs . | . . Wheels . | . . Hover . | . . Flight . | . . Fastest Speed 50 | 50 160 Average Speed 210 | 156 227 Slowest Speed 750 | 160 750 Overloaded Moves . | . . Propulsion Burnouts . | . . Robots Hopped . | . . Cave-ins Triggered . | . . Exploration Rate (%) 29 | 5 53 Regions Visited 1 Branch Regions . Pre-discovered Areas . | . . Known Exits Taken . | . . Unknown Exits Taken 1 | 1 . Scrap Searched . | . . Spaces Dug 2 | . 2 Terrain Destroyed 10 | 5 5 Melee . | . . Projectile 2 | . 2 AOE 8 | 5 3 Terrain Rammed . | . . Walls Destroyed . | . . Machines Disabled . | . . Actions | -11 -10 --------- Run | Yrd Mat Total 557 | 129 428 Wait 93 | . 93 Move 358 | 85 273 Hop . | . . Pick Up 22 | 9 13 Fast Attach 7 | 7 . Attach 1 | . 1 Detach . | . . Swap 5 | . 5 Drop 6 | 3 3 Fire 65 | 25 40 Melee . | . . Ram . | . . Kick . | . . Crush . | . . Escape Stasis . | . . Rewire . | . . Trap . | . . Miscellaneous . | . . Route ------- -11/Scrapyard -10/Materials (discovered 2 exits: *Min x2) History --------- Turn | Location | Event 9 | -11/Scrapyard | Discovered new exit (range 16) 230 | -11/Scrapyard | Entered Materials 306 | -10/Materials | Build established: Mutant 670 | -10/Materials | Identified exit to Mines 1055 | -10/Materials | Core integrity fell below 50% 1069 | -10/Materials | Core integrity fell below 20% 1074 | -10/Materials | Destroyed by G-34 Mercenary with Small Laser Last Messages --------------- 00947_ Acquired Lgt. Ion Engine. 00967_ O-16 Technician: "IFF HANDSHAKE FAILED. SECURING TERMINAL." 00974_ Acquired Mining Laser. 00979_ ALERT: Hostiles spotted, dispatching reinforcements to Terminal M003. 01015_ O-16 Technician: "IFF HANDSHAKE FAILED. SECURING TERMINAL." 01018_ ALERT: Hostiles spotted, dispatching reinforcements to Terminal M001. 01023_ Ion Engine destroyed. 01038_ Lgt. Treads destroyed. 01047_ S-10 Pest destroyed. 01047_ Switching to secondary target: G-34 Mercenary. 01047_ Lgt. Treads destroyed. 01052_ Destroyed Flight Unit. 01052_ S-10 Pest destroyed. 01054_ Acquired 14 matter. 01071_ Lgt. Assault Rifle destroyed. Map ----- +----------------------------------------------------+ | | | ?????????????????????????????????????????????????? | | ?????????????????????????????????????????????????? | | ?????????????????????????????????????????????????? | | ?????????????????????????????????????????????????? | | ?????????????????????????????????????????????????? | | ?????????????????????????????????????????????????? | | ?????????????????????????????????????????????????? | | ?????????????????????????????????????????????????? | | ?????????????????????????????????????????????????? | | ?????????????????????????????????????????????????? | | ?????????????????????????????????????????????????? | | ???????????????????????????????? ????????????????? | | ??????????????????????????????? ???????????????? | | ???????????????????????????????! ???????????????? | | ??????????????????????????????*! ????????????????? | | ??????????????????????????????!!?????????????????? | | ????????????????????????????? ?????????????????? | | ????????????????????????????? ??????????????????? | | ?????????????????"?????????? ???????????????????? | | ???????????????? """???????? #???????????????????? | | ?????????#?????? ""???????? #???????????????????? | | ?????????+ ????? ""???????? #???????????????????? | | ?????????# ???? ??????? #???????????????????? | | ?????????# ####+###???## ##??????????????????? | | ?????????# #####@ #??????????????????? | | ??????????????# * o###????????????????? | | ??????????????# gg %[T ???????????? | | ??????????????# s ?????????? | | #????????####?# ##### k ?????????? | | ##??????? #?## ##???###############??????????? | | "######?? #??# #?????????????????????????????? | | """ #### ###?# #?????????????????????????????? | | "Y" ## #?# #?????????????????????????????? | | " " ## ### ####??????????????????????????? | | + ## """#??????????????????????????? | | ## ## "#??????????????????????????? | | ## ## !"#??????????????????????????? | | ##+#/##### #### > ""#??????????????????????????? | | #???# #??# "#??????????????????????????? | | ##### #??# "#??####????????????????????? | | #??# """#?? #????????????????????? | | ##+############# ####?? #????????????????????? | | # # ####### ########??????????????? | | # + #??????????????? | | % # # #??????????????? | | # """ """ # #??????????????? | | # """ """ # #######+#### #??????????????? | | # """ """ #% #?# #????#??????????????? | | # # #?# "T" #???????????????????? | +----------------------------------------------------+ Best States ------------- Heat Dissipation 25 Energy Generation 10 Energy Capacity 250 Matter Stores 300 Matter Capacity 300 Sight Range 16 Terrain Scan Density 10 Evasion (%) 40 Recoil Reduction 2 Item Schematics ----------------- Hcp. Storage Unit | -10/Materials | Hacked Robot Schematics ------------------ None Fabricated ------------ Nothing Alien Tech Used ----------------- None Achievements -------------- None Challenges ------------ None Game ------ Seed SalvagingAlphaNetwork Manual? 0 Play Time 00:13:26 Cumulative 152.2 hours Start 2025.05.06 @ 01:11:08 End 2025.05.06 @ 01:25:24 Sessions 1 Manual Loads 0 Difficulty Rogue Special Mode None Game No. 99 Rogue 99 Adventurer 0 Explorer 0 Win Type - Total 1 Types 1/0/0/0/0/0/0/0/0 Lore% 22 Gallery% 50 Achievement% 36 Wizard Run 0 Options --------- Layout 2 ASCII 0 Keyboard 0 Movement Mouse Keybinds 0 Fullscreen 1 Font 24/Smallcaps Map View 50x44 Zoom Use 0% Tactical HUD 1 Map Filters NONE Filters NONE Steam 1 RUN: ed4cc599-2d8d-4ce9-ac70-5ed0056a3953